bitfinex/quotes_ETHUSD_20220118
["timestamp","ask_amount","ask_price","bid_price","bid_amount"]
[1642543439058,2.4765,3161.4,3160.1,3.44165868]
[1642543439258,2.12197259,3161.3,3160.2,0.00397896]
[1642543439458,0.1265,3161.2,3160.3,0.79108]
[1642543439659,0.12820527,3161.2,3160.3,0.79108]
[1642543439859,0.00113685,3161.1,3160.4,0.00284211]
[1642543440265,0.00113685,3161.1,3160.5,1.58205]
[1642543440665,0.00113685,3161.1,3160.6,0.00170527]
[1642543441802,0.00113685,3161.1,3160.6,2.42792488]
[1642543442202,0.00113685,3161.1,3160.6,2.37792488]
[1642543442407,0.0022737,3161.0,3160.5,1.58205]
[1642543442807,0.00170527,3160.9,3160.5,1.58205]
[1642543443106,5.31969889,3161.3,3160.5,1.58205]
[1642543443107,0.00113685,3160.8,3160.5,1.58205]
[1642543443507,0.00341054,3161.2,3160.5,1.58205]
[1642543443906,5.31969889,3161.3,3160.5,1.58205]
[1642543443907,0.00284212,3161.1,3160.5,1.58205]
[1642543444307,0.0022737,3161.0,3160.5,1.58205]
[1642543444707,0.00170527,3160.9,3160.5,1.58205]
[1642543445154,0.00113685,3160.8,3160.5,1.58205]
[1642543445557,0.12991054,3161.2,3160.5,1.58205]
[1642543445757,1.66509809,3160.7,3160.5,1.58205]
[1642543446662,1.66348032,3160.7,3160.5,1.58205]
[1642543447760,1.66348032,3160.7,3160.5,1.53205]
[1642543447961,1.66348032,3160.7,3160.3,0.1265]
[1642543448361,1.66348032,3160.7,3160.4,0.00113684]
[1642543449008,1.66348032,3160.7,3160.3,0.00170527]
[1642543450610,1.66348032,3160.7,3160.4,0.1265]
[1642543452010,1.66348032,3160.7,3160.3,0.12820527]
[1642543453069,1.66348032,3160.7,3160.3,0.00170527]
[1642543453268,1.66348032,3160.7,3160.1,0.1265]
[1642543453269,1.66348032,3160.7,3160.2,0.79117]
[1642543453468,1.66348032,3160.7,3160.3,0.1265]
[1642543453469,0.00170527,3160.6,3160.3,0.1265]
[1642543453669,0.00170527,3160.6,3160.2,0.1265]
[1642543454072,1.66348032,3160.7,3160.2,0.1265]
[1642543454073,0.00113685,3160.5,3160.2,0.1265]
[1642543454470,0.00170527,3160.6,3160.2,0.1265]
[1642543454869,0.00113685,3160.5,3160.2,0.1265]
[1642543455271,0.00170527,3160.6,3159.8,1.58242]
[1642543455470,0.00170527,3160.6,3159.7,0.13283559]
[1642543455671,1.66348032,3160.7,3159.9,0.00227369]
[1642543455672,0.12763685,3160.5,3159.9,0.00227369]
[1642543455871,0.00113685,3160.5,3159.9,0.00227369]
[1642543456174,0.1265,3160.4,3159.9,0.00227369]
[1642543456431,0.1265,3160.5,3159.9,0.00227369]
[1642543456619,0.12763685,3160.5,3159.9,0.00227369]
[1642543457020,0.12763685,3160.5,3159.8,0.00284211]
[1642543457624,0.12763685,3160.5,3159.7,0.00341054]
[1642543458224,0.12763685,3160.5,3159.7,0.79471054]
[1642543458624,0.00113685,3160.5,3159.8,0.00284211]
[1642543459825,0.1265,3160.4,3159.8,0.00284211]
[1642543460258,0.9885,3160.4,3159.8,0.00284211]
[1642543461157,0.01437034,3160.3,3159.8,0.00284211]
[1642543461366,4.9765,3160.2,3159.6,2.06345112]
[1642543461558,4.9765,3160.2,3159.5,2.55379838]
[1642543461559,5.5,3160.1,3159.5,2.55379838]
[1642543461756,0.1265,3160.0,3159.5,2.55379838]
[1642543461960,0.12763684,3160.0,3159.6,0.00113685]
[1642543462357,1.85027546,3159.9,3159.6,0.00113685]
[1642543462557,0.1265,3159.8,3159.6,0.00113685]
[1642543462961,3.14157,3159.7,3159.6,0.00113685]
[1642543463167,4.18227,3159.7,3159.6,0.00113685]
[1642543463363,2.3,3159.6,3159.5,0.56839359]
[1642543463564,2.4265,3159.6,3158.9,7.45]
[1642543463807,0.1265,3159.5,3158.9,7.45]
[1642543464112,0.1265,3159.5,3159.0,0.00341054]
[1642543464310,0.1265,3159.6,3159.0,0.00341054]
[1642543465913,0.1265,3159.6,3159.0,2.61767102]
[1642543466112,0.1265,3159.6,3159.0,0.00341054]
[1642543466312,0.1265,3159.6,3159.1,0.00284212]
[1642543466515,1.1948,3159.8,3159.1,0.00284212]
[1642543466516,0.1265,3159.7,3159.1,0.00284212]
[1642543467668,0.79159,3159.6,3159.1,0.00284212]
[1642543467868,0.1265,3159.5,3159.1,0.00284212]
[1642543468265,2.04714086,3159.4,3159.1,0.00284212]
[1642543468465,0.1265,3159.3,3159.1,0.00284212]
[1642543470566,3.3265,3159.3,3158.8,0.00454739]
[1642543470768,4.11818,3159.3,3158.8,0.00454739]
[1642543471170,4.11818,3159.3,3158.5,0.00625266]
[1642543472428,5.18168,3159.3,3158.5,0.00625266]
[1642543472930,0.38398415,3158.9,3158.5,0.00625266]
[1642543473130,2.21551236,3158.8,3158.5,0.00625266]
[1642543473528,2.21551236,3158.8,3158.2,0.00795793]
[1642543473732,2.21551236,3158.8,3158.1,1.49620044]
[1642543473928,0.00284212,3158.7,3158.0,0.1265]
[1642543474330,0.00227369,3158.6,3158.0,0.1265]
[1642543474729,0.00170527,3158.5,3158.0,0.1265]
[1642543475164,0.00113685,3158.4,3158.0,0.1265]
[1642543475364,2.30319651,3158.3,3158.0,0.1265]
[1642543476568,0.1265,3158.5,3158.4,0.39387915]
[1642543476969,2.21765907,3158.5,3158.4,0.39387915]
[1642543477772,5.70951907,3158.5,3158.4,7.915e-05]
[1642543479215,3.61836,3158.5,3158.4,7.915e-05]
[1642543479716,5.91836,3158.5,3158.4,7.915e-05]
[1642543480118,2.59780421,3158.5,3158.4,7.915e-05]
[1642543480522,0.1265,3158.5,3158.4,7.915e-05]
[1642543480720,0.1265,3158.6,3158.4,7.915e-05]
[1642543481117,3.19304448,3158.5,3158.4,7.915e-05]
[1642543481718,5.23462859,3158.5,3158.4,7.915e-05]
[1642543481920,3.19304448,3158.5,3158.4,7.915e-05]
[1642543482990,8.23564579,3158.5,3158.4,7.915e-05]
[1642543483290,8.23564579,3158.5,3158.4,0.12657915]
[1642543484191,8.23564579,3158.5,3158.4,7.915e-05]
[1642543484391,8.23564579,3158.5,3158.4,4.46494321]
[1642543485493,4.95105936,3158.5,3158.4,9.28603064]
[1642543485692,0.00227369,3158.6,3158.4,8.98603064]
[1642543485893,0.00227369,3158.6,3158.5,9.43669633]
[1642543486094,0.00227369,3158.6,3158.5,11.13415949]
[1642543486308,0.00227369,3158.6,3158.5,11.26065949]
[1642543486613,0.00227369,3158.6,3158.5,5.91878949]
[1642543487615,0.00227369,3158.6,3158.5,7.70955988]
[1642543488014,0.00227369,3158.6,3158.5,7.55142988]
[1642543488814,0.00227369,3158.6,3158.5,7.70955988]
[1642543489215,0.00227369,3158.6,3158.5,7.55142988]
[1642543489615,0.00227369,3158.6,3158.5,7.70955988]
[1642543490656,0.00227369,3158.6,3158.5,8.70955988]
[1642543491358,2.90227369,3158.6,3158.5,8.70955988]
[1642543491557,2.90227369,3158.6,3158.5,5.56427355]
[1642543491964,0.1265,3160.1,3158.7,1.94886852]
[1642543492159,0.1265,3160.1,3159.0,0.79147]
[1642543492360,0.00795793,3160.0,3159.1,3.53040752]
[1642543492763,0.00738951,3159.9,3159.1,3.53040752]
[1642543492966,0.00738951,3159.9,3159.1,3.5182632]
[1642543493164,0.00682109,3159.8,3159.1,1.86129335]
[1642543493365,0.00682109,3159.8,3159.2,2.6918596]
[1642543493566,0.00625266,3159.7,3159.2,1.79077039]
[1642543493821,0.00625266,3159.7,3159.2,4.44524208]
[1642543494009,0.00568424,3159.6,3159.2,1.79077039]
[1642543494213,0.314,3159.4,3159.2,1.79077039]
[1642543494412,0.314,3159.4,3159.3,5.5964981]
[1642543494611,0.314,3159.4,3159.3,3.6891]
[1642543495416,0.314,3159.4,3159.3,5.22665761]
[1642543496817,0.314,3159.4,3159.3,2.57665761]
[1642543497016,0.314,3159.4,3159.3,1.53755761]
[1642543498463,0.314,3159.4,3159.1,3.57050335]
[1642543498464,0.314,3159.4,3159.2,1.53755761]
[1642543498863,0.00397897,3159.3,3159.2,4.21934553]
[1642543499465,0.00397897,3159.3,3159.1,6.20315545]
[1642543499664,0.00397897,3159.3,3159.1,6.18176027]
[1642543499867,0.00341054,3159.2,3159.1,6.18176027]
[1642543500066,0.00341054,3159.2,3159.1,1.98779335]
[1642543500265,0.00341054,3159.2,3159.1,4.59642098]
[1642543500464,0.00341054,3159.2,3159.1,1.98779335]
[1642543500668,0.00341054,3159.2,3159.1,4.68212409]
[1642543500873,0.00341054,3159.2,3159.1,4.59889971]
[1642543501071,0.00341054,3159.2,3159.1,1.98779335]
[1642543501321,0.00341054,3159.2,3159.1,4.75645264]
[1642543502716,0.00341054,3159.2,3159.1,1.98779335]
[1642543502917,0.00341054,3159.2,3159.1,4.62694594]
[1642543503217,0.00341054,3159.2,3159.1,5.29181594]
[1642543503419,0.00341054,3159.2,3159.1,2.65266335]
[1642543503819,0.00341054,3159.2,3159.1,5.3886973]
[1642543504018,0.00341054,3159.2,3159.1,2.65266335]
[1642543504217,22.34733665,3159.1,3158.8,3.1654985]
[1642543504417,22.34733665,3159.1,3158.9,2.73593312]
[1642543504616,22.34733665,3159.1,3159.0,1.0]
[1642543504817,22.34733665,3159.1,3159.0,3.73310754]
[1642543505063,22.35017877,3159.1,3159.0,2.77011176]
[1642543505666,22.35017877,3159.1,3159.0,1.77011176]
[1642543506071,22.35017877,3159.1,3159.0,4.47710685]
[1642543506669,22.35017877,3159.1,3159.0,1.77011176]
[1642543508273,23.47251456,3159.1,3159.0,1.77011176]
[1642543509144,23.47251456,3159.1,3158.6,0.918]
[1642543509545,23.47251456,3159.1,3158.5,0.1265]
[1642543509546,0.0022737,3159.0,3158.5,0.1265]
[1642543509744,0.1287737,3159.0,3158.5,0.1265]
[1642543509942,0.00170527,3158.9,3158.5,0.1265]
[1642543510343,0.1265,3159.0,3158.5,0.1265]
[1642543510344,1.72100064,3158.8,3158.5,0.1265]
[1642543510745,1.72100064,3158.8,3158.4,7.915e-05]
[1642543510746,0.79187,3158.6,3158.4,7.915e-05]
[1642543510944,5.4765,3158.5,3158.4,7.915e-05]
[1642543511348,5.4765,3158.5,3158.4,0.00121599]
[1642543511745,7.81194687,3158.5,3158.4,0.00121599]
[1642543512775,8.60384687,3158.5,3158.4,0.00121599]
[1642543514782,5.5,3158.4,3157.3,1.7274471]
[1642543514982,0.79205,3158.0,3157.4,2.893601]
[1642543515180,0.1265,3157.9,3157.4,0.00568424]
[1642543515581,0.1265,3158.0,3157.4,0.00568424]
[1642543515782,1.88277838,3157.9,3157.4,0.00568424]
[1642543515983,0.1265,3157.8,3157.4,0.00568424]
[1642543516183,0.91852,3157.8,3157.4,0.00568424]
[1642543517640,4.57806292,3157.9,3157.4,0.00568424]
[1642543517641,2.99388292,3157.9,3157.4,0.00568424]
[1642543517842,1.11110454,3157.9,3157.3,2.77433062]
[1642543518041,1.11110454,3157.9,3157.5,0.1265]
[1642543518242,0.0022737,3157.8,3157.6,0.79173]
[1642543518439,0.0022737,3157.8,3157.7,2.9265]
[1642543518643,7.287,3158.8,3157.7,2.9265]
[1642543518844,7.287,3158.8,3157.8,2.96603949]
[1642543519048,1.9319209,3158.0,3157.9,1.11971077]
[1642543519347,1.9319209,3158.0,3157.8,2.96603949]
[1642543519348,1.93533144,3158.0,3157.6,3.070101]
[1642543519544,1.93533144,3158.0,3157.6,0.1265]
[1642543519744,0.00284212,3157.9,3157.8,1.55605581]
[1642543520179,0.00284212,3157.9,3157.8,1.54535977]
[1642543520380,0.00284212,3157.9,3157.8,1.54178385]
[1642543520779,0.00284212,3157.9,3157.3,1.72601209]
[1642543521083,0.0022737,3157.8,3157.3,1.59951209]
[1642543521479,0.00170527,3157.7,3157.3,1.59951209]
[1642543521884,0.00113685,3157.6,3157.3,1.59951209]
[1642543522280,0.00284212,3157.9,3157.3,1.59951209]
[1642543522781,0.0022737,3157.8,3157.3,1.59951209]
[1642543523182,0.00170527,3157.7,3157.3,1.59951209]
[1642543523582,1.65918543,3157.5,3157.3,1.59951209]
[1642543524424,0.1265,3158.2,3157.3,1.59951209]
[1642543524825,0.00397897,3158.1,3157.3,1.59951209]
[1642543525127,0.12991054,3158.0,3157.3,1.59951209]
[1642543525323,0.28804054,3158.0,3157.3,1.59951209]
[1642543525525,0.00284212,3157.9,3157.3,1.59951209]
[1642543525824,2.12628869,3157.8,3157.3,3.29586039]
[1642543526027,0.0022737,3157.8,3157.4,1.18593981]
[1642543526224,1.3537,3158.7,3157.3,3.75399039]
[1642543526225,0.00170527,3157.7,3157.3,3.75399039]
[1642543526626,0.00113685,3157.6,3157.3,3.45399039]
[1642543526826,0.00113685,3157.6,3157.4,1.70999]
[1642543527031,0.00682108,3158.6,3158.5,2.31334167]
[1642543527226,0.00682108,3158.6,3157.7,1.18207618]
[1642543527425,0.00682108,3158.6,3157.8,0.1265]
[1642543527671,3.637,3158.8,3157.8,0.1265]
[1642543527672,0.00625266,3158.5,3157.8,0.1265]
[1642543527971,0.00568424,3158.4,3157.8,0.1265]
[1642543528174,0.00568424,3158.4,3157.9,2.27155583]
[1642543528374,0.00511581,3158.3,3157.7,1.97378618]
[1642543528775,0.00454739,3158.2,3157.7,0.79171]
[1642543528974,0.00454739,3158.2,3157.8,0.1265]
[1642543529176,2.32380852,3158.5,3157.7,0.79171]
[1642543529177,0.00397897,3158.1,3157.7,0.79171]
[1642543529678,0.00341054,3158.0,3157.7,0.79172]
[1642543530075,0.1265,3158.7,3157.7,0.79172]
[1642543530076,0.00284212,3157.9,3157.7,0.79172]
[1642543530277,0.00284212,3157.9,3157.8,5.65813]
[1642543530479,30.54003665,3159.1,3157.8,9.11695182]
[1642543530480,0.1265,3159.0,3157.8,9.11695182]
[1642543530677,0.1265,3159.0,3158.5,1.31887289]
[1642543530877,0.00682108,3158.6,3158.1,0.15813]
[1642543531321,22.34733665,3159.1,3158.0,1.5830429]
[1642543531322,0.00625266,3158.5,3158.0,1.5830429]
[1642543531522,0.00625266,3158.5,3158.0,1.7411729]
[1642543531722,0.00568424,3158.4,3158.0,1.5830429]
[1642543532121,0.00511581,3158.3,3158.2,5.51216663]
[1642543533326,0.00511581,3158.3,3158.2,6.29146]
[1642543534024,0.00511581,3158.3,3158.2,0.94959]
[1642543534227,0.00511581,3158.3,3157.9,1.0]
[1642543534623,0.00511581,3158.3,3157.2,1.194]
[1642543534624,0.00454739,3158.2,3157.7,2.04374534]
[1642543534828,0.00454739,3158.2,3157.6,2.04374534]
[1642543535063,0.1265,3158.5,3157.6,2.04374534]
[1642543535064,0.00397897,3158.1,3157.6,2.04374534]
[1642543535468,0.00341054,3158.0,3157.6,2.04374534]
[1642543535667,0.00341054,3158.0,3157.4,2.3396773]
[1642543535866,0.00284212,3157.9,3157.4,2.3396773]
[1642543536271,0.0022737,3157.8,3157.4,2.3396773]
[1642543536673,0.00170527,3157.7,3157.4,2.3396773]
[1642543537071,0.00113685,3157.6,3157.4,2.3396773]
[1642543537476,0.1265,3158.3,3157.4,2.3396773]
[1642543537872,0.00454739,3158.2,3157.4,2.3396773]
[1642543538072,0.1265,3158.1,3157.3,1.59951209]
[1642543538273,0.13047897,3158.1,3157.3,1.59951209]
[1642543538473,0.00341054,3158.0,3157.3,1.59951209]
[1642543538920,0.00284212,3157.9,3157.3,1.59951209]
[1642543539125,1.80143921,3157.4,3157.3,1.59951209]
[1642543539322,0.0022737,3157.8,3157.3,1.59951209]
[1642543539623,0.00170527,3157.7,3157.3,1.59951209]
[1642543540026,0.00113685,3157.6,3157.3,1.59951209]
[1642543540426,1.751994,3158.0,3157.3,1.59951209]
[1642543540623,1.92346724,3157.4,3157.3,1.59951209]
[1642543541024,0.00284212,3157.9,3157.3,1.59951209]
[1642543541025,0.00341054,3158.0,3157.3,1.59951209]
[1642543541423,0.00284212,3157.9,3157.3,1.59951209]
[1642543541824,3.9163,3158.1,3157.3,1.59951209]
[1642543541825,0.0022737,3157.8,3157.3,1.59951209]
[1642543542223,4.0428,3158.1,3157.3,1.59951209]
[1642543542224,0.00170527,3157.7,3157.3,1.59951209]
[1642543542668,0.00113685,3157.6,3157.3,1.59951209]
[1642543543066,2.29866184,3157.7,3157.3,1.59951209]
[1642543543466,0.00113685,3157.6,3157.3,1.59951209]
[1642543544067,0.00113685,3157.6,3157.4,1.52639571]
[1642543544968,0.00113685,3157.6,3157.5,5.65813]
[1642543545176,0.00113685,3157.6,3157.5,5.78463]
[1642543545371,0.00113685,3157.6,3157.5,5.73463]
[1642543545568,0.00113685,3157.6,3157.5,9.89643899]
[1642543546069,0.00113685,3157.6,3157.5,6.73463]
[1642543546563,0.00113685,3157.6,3157.5,6.52639]
[1642543547263,0.00113685,3157.6,3157.5,8.05278571]
[1642543547464,0.00113685,3157.6,3157.5,7.94465571]
[1642543547870,0.00113685,3157.6,3157.5,8.05278571]
[1642543548467,0.00113685,3157.6,3157.5,7.94465571]
[1642543548868,0.00113685,3157.6,3157.5,8.05278571]
[1642543549568,0.00113685,3157.6,3157.5,2.55278571]
[1642543550874,0.00113685,3157.6,3157.5,2.42628571]
[1642543552174,0.00113685,3157.6,3157.5,2.31815571]
[1642543552372,0.00113685,3157.6,3157.5,2.26815571]
[1642543558680,0.00113685,3157.6,3157.5,3.26815571]
[1642543559680,0.00113685,3157.6,3157.5,2.26815571]
[1642543562223,0.00113685,3157.6,3157.5,3.46617495]
[1642543562420,0.00113685,3157.6,3157.5,3.92117495]
[1642543562622,0.00113685,3157.6,3157.5,8.42117495]
[1642543562822,0.1265,3158.8,3157.6,5.5]
[1642543563025,3.99854413,3159.9,3158.7,0.01229707]
[1642543563223,8.3781,3159.8,3159.1,0.01261258]
[1642543563527,0.0096632,3159.3,3159.2,0.96602993]
[1642543563826,0.0096632,3159.3,3159.2,8.13873253]
[1642543564123,0.0096632,3159.3,3159.2,4.22100253]
[1642543564322,11.37096321,3159.8,3159.2,4.22100253]
[1642543564620,11.37096321,3159.8,3159.2,2.53060253]
[1642543564621,0.00227369,3159.7,3159.2,2.53060253]
[1642543564820,0.00227369,3159.7,3159.2,2.40410253]
[1642543565077,0.00170527,3159.6,3159.2,0.73139993]
[1642543565269,0.12820527,3159.6,3159.2,0.455]
[1642543565469,0.00113684,3159.5,3159.2,0.455]
[1642543565869,0.00113684,3159.5,3158.7,4.903047]
[1642543566072,1.93700783,3159.0,3158.7,4.903047]
[1642543566269,0.00113684,3159.5,3158.7,4.903047]
[1642543566270,0.00113684,3159.5,3158.8,0.00284212]
[1642543566872,0.00113684,3159.5,3158.9,0.79143]
[1642543567273,0.00113684,3159.5,3159.0,0.00170527]
[1642543567474,0.00113684,3159.5,3159.0,2.18672637]
[1642543567879,0.00113684,3159.5,3159.1,0.00113685]
[1642543568682,0.00113684,3159.5,3159.1,0.79252685]
[1642543569720,0.00113684,3159.5,3159.1,0.00113685]
[1642543569920,0.00113684,3159.5,3159.2,0.79136]
[1642543570623,0.00113684,3159.5,3159.2,2.03768]
[1642543571024,0.00113684,3159.5,3159.2,1.24636]
[1642543572223,0.00113684,3159.5,3159.2,2.03766]
[1642543573070,0.00113684,3159.5,3159.3,1.58245]
[1642543573670,0.00113684,3159.5,3159.3,2.58245]
[1642543573873,0.00113684,3159.5,3159.4,7.38980135]
[1642543574272,0.00113684,3159.5,3159.4,6.29119]
[1642543574469,0.00113684,3159.5,3159.4,0.79119]
[1642543574669,0.00113684,3159.5,3159.4,1.79119]
[1642543575774,0.00113684,3159.5,3159.4,0.79119]
[1642543575973,0.00113684,3159.5,3159.2,1.24636]
[1642543576421,0.00113684,3159.5,3159.2,0.455]
[1642543577221,8.17341237,3159.8,3159.2,0.455]
[1642543577421,8.17341237,3159.8,3159.3,0.00113685]
[1642543577624,0.00113685,3159.7,3159.3,0.00113685]
[1642543579829,0.00113685,3159.7,3159.4,0.7913]
[1642543580701,0.00113685,3159.7,3159.6,1.0]
[1642543581099,0.00113685,3159.7,3159.6,2.83218054]
[1642543582697,0.00113685,3159.7,3159.6,1.83218054]
[1642543584325,0.00113685,3159.7,3159.3,1.00113685]
[1642543584520,0.12763685,3159.7,3159.3,1.00113685]
[1642543584722,0.12763685,3159.7,3159.3,0.00113685]
[1642543585120,0.12763685,3159.7,3159.2,0.00170527]
[1642543585719,0.12763685,3159.7,3159.4,2.13548211]
[1642543587122,0.00113685,3159.7,3159.4,2.13548211]
[1642543589074,0.12763685,3159.7,3159.4,2.13548211]
[1642543589273,0.12763685,3159.7,3159.2,0.00170527]
[1642543589674,0.12763685,3159.7,3158.7,5.20943]
[1642543589675,0.07763685,3159.7,3158.8,0.00397896]
[1642543590174,0.07763685,3159.7,3159.4,2.09503852]
[1642543590577,0.07763685,3159.7,3159.5,0.00113685]
[1642543591621,8.29991237,3159.8,3159.5,0.00113685]
[1642543592219,8.29991237,3159.8,3159.4,2.09503852]
[1642543592220,8.29991237,3159.8,3158.8,0.1265]
[1642543592422,0.00381453,3159.6,3158.8,0.1265]
[1642543592626,0.91822,3159.5,3158.9,0.00341054]
[1642543592825,0.79176,3159.3,3158.9,0.00341054]
[1642543593024,0.1265,3159.2,3158.9,0.00341054]
[1642543594226,1.8872747,3159.1,3158.9,0.00341054]
[1642543594426,3.8765,3159.0,3158.9,0.00341054]
[1642543594630,3.75,3159.0,3158.9,0.00341054]
[1642543595666,0.1265,3159.2,3158.9,0.00341054]
[1642543595868,2.16829456,3159.6,3158.9,0.00341054]
[1642543595869,0.1265,3159.5,3158.9,0.00341054]
[1642543596474,0.79169,3159.3,3158.9,0.00341054]
[1642543596673,1.58342,3159.4,3158.9,0.00341054]
[1642543596674,0.1265,3159.2,3158.9,0.00341054]
[1642543596874,0.1265,3159.3,3158.9,0.00341054]
[1642543597574,0.79172,3159.1,3158.9,0.00341054]
[1642543597772,10.06404133,3159.0,3158.9,0.00341054]
[1642543599723,8.3257,3159.0,3158.9,0.00341054]
[1642543600321,0.1265,3159.1,3158.9,0.00341054]
[1642543600523,0.7917,3159.2,3158.2,0.02357104]
[1642543600726,0.7917,3159.2,3158.2,0.0073895]
[1642543600923,0.7917,3159.2,3158.3,0.00682108]
[1642543600924,1.70622367,3158.5,3158.3,0.00682108]
[1642543601125,3.54622146,3159.3,3158.2,2.69633971]
[1642543601126,0.79175,3159.0,3158.2,2.69633971]
[1642543601328,0.79175,3159.0,3158.3,0.00682108]
[1642543601524,0.1265,3159.1,3158.3,0.00682108]
[1642543602023,1.86492017,3158.5,3158.3,0.00682108]
[1642543602226,0.1265,3159.1,3158.2,0.0073895]
[1642543602426,6.50222,3159.4,3158.2,0.0073895]
[1642543602427,4.9188,3159.4,3158.2,0.0073895]
[1642543602676,4.9188,3159.4,3158.3,0.24632996]
[1642543603077,4.9188,3159.4,3158.4,0.00625265]
[1642543603688,4.9188,3159.4,3158.9,1.0]
[1642543603876,4.89317739,3159.7,3158.9,3.106495]
[1642543604079,4.89317739,3159.7,3159.0,0.00284211]
[1642543604377,3.2929,3159.7,3159.0,0.00284211]
[1642543605579,3.2929,3159.7,3159.5,2.27053731]
[1642543605780,4.91155,3159.8,3159.0,0.00284211]
[1642543605781,0.91805,3159.8,3159.0,0.00284211]
[1642543606181,0.79155,3159.8,3158.6,0.00511581]
[1642543606420,0.1265,3159.7,3158.6,0.00511581]
[1642543606618,0.1265,3159.7,3158.7,1.0]
[1642543606821,2.21768191,3159.4,3158.9,1.95189868]
[1642543607019,0.1265,3159.7,3158.9,1.95189868]
[1642543607218,0.1265,3159.7,3159.0,0.00284211]
[1642543608622,0.1265,3159.7,3159.6,1.91753507]
[1642543608822,0.1265,3159.7,3159.0,0.00284211]
[1642543609223,0.1265,3159.7,3158.7,0.00454738]
[1642543609925,0.1265,3159.7,3158.6,0.00511581]
[1642543610170,0.7916,3159.6,3158.8,2.6886592]
[1642543610371,5.28885674,3159.7,3158.8,2.6886592]
[1642543610372,0.1265,3159.5,3158.8,2.6886592]
[1642543610573,10.56554166,3159.7,3158.8,2.6886592]
[1642543610574,0.58463,3159.6,3158.8,2.6886592]
[1642543610773,0.28463,3159.6,3158.8,2.6886592]
[1642543610971,0.28463,3159.6,3158.6,0.00511581]
[1642543611172,2.22009972,3158.7,3158.6,0.00511581]
[1642543611376,0.79177,3159.1,3158.4,0.00625265]
[1642543611575,7.8885,3159.0,3158.4,0.00625265]
[1642543614231,7.8885,3159.0,3158.9,1.71493897]
[1642543614836,7.8885,3159.0,3158.4,0.00625265]
[1642543615938,7.8885,3159.0,3158.5,0.1265]
[1642543616338,7.8885,3159.0,3158.6,0.79660581]
[1642543616539,7.8885,3159.0,3158.7,0.1265]
[1642543616840,7.8885,3159.0,3158.8,0.00397896]
[1642543617038,7.8885,3159.0,3158.8,1.86337782]
[1642543617239,7.8885,3159.0,3158.8,1.85939886]
[1642543618479,7.8885,3159.0,3158.8,1.91124406]
[1642543620582,7.8885,3159.0,3158.8,0.0518452]
[1642543620984,7.8385,3159.0,3158.8,0.0518452]
[1642543625900,7.8385,3159.0,3158.9,2.68084405]
[1642543626085,7.8385,3159.0,3158.9,4.76440592]
[1642543628951,7.8385,3159.0,3158.9,2.08356187]
[1642543629153,7.47755,3159.0,3158.9,2.08356187]
[1642543629952,7.47755,3159.0,3158.8,0.0518452]
[1642543630351,7.47755,3159.0,3158.9,2.68022308]
[1642543630555,7.47008,3159.0,3158.9,2.68022308]
[1642543631153,7.47008,3159.0,3158.9,4.51125375]
[1642543633176,0.1265,3159.3,3158.9,4.51125375]
[1642543633377,1.60027739,3159.5,3158.9,4.51125375]
[1642543633378,1.58856739,3159.5,3158.9,4.51125375]
[1642543633579,1.58856739,3159.5,3159.0,0.00284211]
[1642543633781,12.59900776,3159.6,3159.0,0.00284211]
[1642543634380,12.59900776,3159.6,3159.0,2.68306519]
[1642543634381,11.6817,3159.6,3159.0,2.68306519]
[1642543634583,11.65127,3159.6,3159.0,2.68306519]
[1642543634781,11.65127,3159.6,3159.1,0.00227369]
[1642543634980,0.1265,3159.5,3159.1,0.00227369]
[1642543635180,2.03220965,3159.3,3159.1,2.68249677]
[1642543635584,2.03220965,3159.3,3159.2,0.00170527]
[1642543636085,8.1547,3159.6,3159.2,0.00170527]
[1642543636331,8.1547,3159.6,3159.1,0.00227369]
[1642543637333,8.1547,3159.6,3159.0,0.00284211]
[1642543637641,8.1547,3159.6,3159.3,1.96743379]
[1642543639537,8.1547,3159.6,3159.4,0.0017865]
[1642543640879,0.1265,3159.6,3159.4,0.0017865]
[1642543641079,7.9795,3159.6,3159.4,0.0017865]
[1642543642581,9.58871096,3159.6,3159.4,0.0017865]
[1642543642780,2.55,3159.5,3159.3,0.0383008]
[1642543642983,9.46221096,3159.6,3159.4,0.00187307]
[1642543645339,9.46221096,3159.6,3159.4,1.82889515]
[1642543645740,9.46221096,3159.6,3159.4,0.00187307]
[1642543645941,7.853,3159.6,3159.4,0.00187307]
[1642543647885,9.46221096,3159.6,3159.4,0.77417307]
[1642543648084,1.60921096,3159.6,3159.5,2.99111318]
[1642543648484,1.60921096,3159.6,3159.4,0.77417307]
[1642543648686,1.60921096,3159.6,3159.5,1.92323045]
[1642543648888,1.60921096,3159.9,3159.5,5.60336238]
[1642543649286,0.00170528,3159.8,3159.5,5.60336238]
[1642543649685,0.00113685,3159.7,3159.5,5.60336238]
[1642543649884,0.00113685,3159.7,3159.5,4.72986238]
[1642543650083,0.00113685,3159.7,3159.6,2.73773375]
[1642543650284,0.00113685,3159.7,3159.6,3.52899375]
[1642543650686,0.00113685,3159.7,3159.6,6.20912568]
[1642543650886,0.00113685,3159.7,3159.6,7.20912568]
[1642543653936,0.00113685,3159.7,3159.6,7.33562568]
[1642543654339,0.00113685,3159.7,3159.6,6.54436568]
[1642543654537,0.00113685,3159.7,3159.6,7.33562568]
[1642543655787,0.00113685,3159.7,3159.6,6.54436568]
[1642543655987,0.00113685,3159.7,3159.6,7.33562568]
[1642543656385,0.00113685,3159.7,3159.6,7.20912568]
[1642543656988,0.00113685,3159.7,3159.6,3.68013193]
[1642543659530,0.00113685,3159.7,3159.6,3.91476193]
[1642543659930,0.00113685,3159.7,3159.6,3.80663193]
[1642543661629,0.00113685,3159.7,3159.6,3.91476193]
[1642543666083,7.82992792,3160.6,3159.8,0.79119]
[1642543666341,9.43913888,3160.6,3159.8,0.79119]
[1642543666531,0.00454739,3160.5,3159.8,0.79119]
[1642543666931,0.00397897,3160.4,3160.0,1.0]
[1642543667134,0.00397897,3160.4,3160.1,1.95282473]
[1642543667333,9.43913888,3160.6,3160.1,1.95282473]
[1642543667334,0.00341054,3160.3,3160.1,1.95282473]
[1642543667732,0.00284212,3160.2,3160.1,1.95282473]
[1642543668935,0.00284212,3160.2,3160.1,2.95282473]
[1642543674532,2.65284212,3160.2,3160.1,2.95282473]
[1642543675037,0.00284212,3160.2,3160.1,1.95282473]
[1642543676034,0.00284212,3160.2,3159.6,1.0]
[1642543676433,0.0022737,3160.1,3159.6,1.0]
[1642543676833,0.00170527,3160.0,3159.4,1.1765]
[1642543677034,0.00170527,3160.0,3159.3,1.0]
[1642543677233,0.00113685,3159.9,3159.5,0.00113685]
[1642543677681,0.1265,3160.3,3160.0,1.97247417]
[1642543677682,0.00284212,3160.2,3160.0,1.97247417]
[1642543677877,0.00284212,3160.2,3159.5,0.00113685]